fUSD/lending_fUSD_20241123
["ID","MTS","AMOUNT","RATE_DAILY","PERIOD"]
[343146772,1732381839040,-50000.0,0.00055,2]
[343146774,1732381839050,-3033.0,0.00055,9]
[343146776,1732381839059,-198555.20805136,0.00055,14]
[343146778,1732381839073,-200000.0,0.00055,120]
[343146779,1732381839301,-46038.42302762,0.00055,2]
[343146781,1732381839312,-520.33,0.00055093,120]
[343146783,1732381839321,-150.0,0.0005513,60]
[343146785,1732381839331,-150.0,0.0005513,60]
[343146787,1732381839341,-150.0,0.0005513,60]
[343146789,1732381839350,-500.0,0.0005517,120]
[343146791,1732381839360,-500.0,0.0005517,120]
[343146793,1732381839369,-500.0,0.0005517,120]
[343146795,1732381839379,-500.0,0.0005517,120]
[343146797,1732381839388,-151.08,0.00055178,60]
[343146799,1732381839397,-362.63,0.00055178,60]
[343146801,1732381839407,-300.0,0.00055178,60]
[343146803,1732381839416,-151.8,0.00055194,120]
[343146805,1732381839425,-175.00821997,0.00055195,15]
[343146806,1732381839437,-500.0,0.00055203,120]
[343146808,1732381839446,-310.94406069,0.00055204,15]
[343146810,1732381839457,-500.0,0.00055204,120]
[343146812,1732381839467,-500.0,0.00055204,120]
[343146814,1732381839476,-500.0,0.00055204,120]
[343146816,1732381839486,-500.0,0.00055204,120]
[343146818,1732381839495,-500.0,0.00055204,120]
[343146820,1732381839505,-297.48596265,0.00055204,120]
[343146822,1732381839514,-610.32,0.00055204,120]
[343146824,1732381839523,-500.0,0.00055204,120]
[343146826,1732381839533,-586.71359803,0.00055204,120]
[343146828,1732381839548,-661.71,0.00055204,120]
[343146830,1732381839557,-693.34,0.00055204,120]
[343146832,1732381839567,-500.0,0.00055204,120]
[343146834,1732381839576,-1211.89,0.00055204,120]
[343146836,1732381839587,-500.0,0.00055204,120]
[343146837,1732381839597,-500.0,0.00055204,120]
[343146839,1732381839607,-500.0,0.00055204,120]
[343146841,1732381839621,-500.0,0.00055204,120]
[343146843,1732381839630,-500.0,0.00055204,120]
[343146844,1732381839640,-500.0,0.00055204,120]
[343146845,1732381839650,-500.0,0.00055204,120]
[343146846,1732381839665,-510.29,0.00055204,120]
[343146847,1732381839674,-500.0,0.00055204,120]
[343146848,1732381839683,-500.0,0.00055204,120]
[343146849,1732381839693,-500.0,0.00055204,120]
[343146850,1732381839703,-500.0,0.00055204,120]
[343146851,1732381839715,-574.64,0.00055204,120]
[343146852,1732381839725,-786.71,0.00055204,54]
[343146853,1732381839735,-647.89810494,0.00055204,120]
[343146854,1732381839745,-1035.76,0.00055204,120]
[343146855,1732381839755,-500.0,0.00055204,120]
[343146856,1732381839765,-500.0,0.00055204,120]
[343146857,1732381839783,-500.0,0.00055204,120]
[343146858,1732381839793,-500.0,0.00055204,120]
[343146859,1732381839805,-547.05,0.00055204,120]
[343146860,1732381839816,-500.0,0.00055204,120]
[343146861,1732381839827,-500.0,0.00055204,120]
[343146862,1732381839837,-542.83,0.00055204,120]
[343146863,1732381839847,-570.63,0.00055204,120]
[343146864,1732381839858,-500.0,0.00055204,120]
[343146865,1732381839868,-819.21,0.00055204,120]
[343146866,1732381839878,-163.8,0.00055204,120]
[343146867,1732381839889,-500.0,0.00055204,120]
[343146868,1732381839899,-1094.74,0.00055204,120]
[343146869,1732381839909,-861.35,0.00055204,120]
[343146870,1732381839918,-500.0,0.00055204,120]
[343146871,1732381839928,-259.48930341,0.00055204,120]
[343146872,1732381839938,-500.0,0.00055204,120]
[343146873,1732381839948,-780.18,0.00055204,120]
[343146874,1732381839957,-537.36291567,0.00055204,120]
[343146875,1732381839967,-500.0,0.00055204,120]
[343146876,1732381839976,-500.0,0.00055204,120]
[343146877,1732381839985,-235.35765574,0.00055204,120]
[343146878,1732381839995,-824.43,0.00055204,120]
[343146879,1732381840004,-500.0,0.00055204,120]
[343146880,1732381840013,-731.97,0.00055204,120]
[343146881,1732381840034,-500.0,0.00055204,120]
[343146882,1732381840044,-500.0,0.00055204,120]
[343146883,1732381840053,-500.0,0.00055204,120]
[343146884,1732381840063,-500.0,0.00055204,120]
[343146885,1732381840072,-500.0,0.00055204,120]
[343146887,1732381840082,-751.75,0.00055204,120]
[343146889,1732381840092,-500.0,0.00055204,120]
[343146892,1732381840102,-500.0,0.00055204,120]
[343146894,1732381840111,-500.0,0.00055204,120]
[343146895,1732381840121,-948.52,0.00055204,30]
[343146896,1732381840131,-203.72,0.00055204,120]
[343146897,1732381840140,-500.0,0.00055204,120]
[343146898,1732381840150,-500.0,0.00055204,120]
[343146899,1732381840159,-500.0,0.00055204,120]
[343146900,1732381840168,-500.0,0.00055204,120]
[343146902,1732381840178,-500.0,0.00055204,120]
[343146903,1732381840187,-500.0,0.00055204,120]
[343146904,1732381840197,-232.02,0.00055204,120]
[343146905,1732381840207,-903.62,0.00055204,120]
[343146906,1732381840216,-500.0,0.00055204,120]
[343146907,1732381840225,-500.0,0.00055204,120]
[343146908,1732381840235,-500.0,0.00055204,120]
[343146909,1732381840244,-500.0,0.00055204,120]
[343146910,1732381840253,-804.88,0.00055204,120]
[343146911,1732381840263,-500.0,0.00055204,120]
[343146912,1732381840285,-500.0,0.00055204,120]
[343146913,1732381840294,-500.0,0.00055204,120]
[343146914,1732381840303,-813.28,0.00055204,120]
[343146915,1732381840312,-500.0,0.00055204,120]
[343146916,1732381840321,-500.0,0.00055204,120]
[343146918,1732381840330,-536.79,0.00055204,120]
[343146919,1732381840338,-500.0,0.00055204,120]
[343146920,1732381840347,-500.0,0.00055204,120]
[343146921,1732381840359,-500.0,0.00055204,21]
[343146922,1732381840368,-1257.0,0.00055205,120]
[343146923,1732381840378,-150.0,0.00055205,120]
[343146924,1732381840387,-1996.0,0.00055205,120]
[343146925,1732381840396,-1928.0,0.00055205,120]
[343146926,1732381840406,-1261.0,0.00055205,120]
[343146927,1732381840415,-3750.0,0.00055205,120]
[343146928,1732381840424,-815.0,0.00055205,2]
[343146929,1732381840434,-1758.786,0.00055205,120]
[343146930,1732381840443,-918.0,0.00055205,120]
[343146931,1732381840454,-257.99017312,0.00055292,27]
[343146932,1732381840466,-500.0,0.00055329,120]
[343146933,1732381840475,-1026.26,0.00055329,120]
[343146934,1732381840484,-893.77,0.00055329,120]
[343146935,1732381840494,-572.24,0.00055329,120]
[343146936,1732381840503,-772.04,0.00055329,120]
[343146937,1732381840512,-942.48,0.00055329,120]
[343146938,1732381840533,-500.0,0.00055329,120]
[343146939,1732381840546,-755.85,0.00055329,120]
[343146940,1732381840555,-532.18,0.00055329,120]
[343146941,1732381840565,-630.75,0.00055329,120]
[343146942,1732381840575,-150.0,0.00055384,120]
[343146943,1732381840587,-438.83,0.00055531,2]
[343146944,1732381840597,-175.00821997,0.00055543,15]
[343146945,1732381840607,-310.94406069,0.00055547,15]
[343146947,1732381840617,-3000.0,0.0005557,75]
[343146948,1732381840627,-150.0,0.00055724,14]
[343146949,1732381840637,-150.0,0.00055726,14]
[343146950,1732381840647,-150.0,0.0005573,14]
[343146951,1732381840657,-150.0,0.00055743,14]
[343146952,1732381840666,-150.0,0.00055746,14]
[343146954,1732381840677,-2081.54212083,0.00055747,57]
[343146955,1732381840687,-150.0,0.00055748,14]
[343146956,1732381840696,-150.0,0.00055751,14]
[343146957,1732381840706,-150.0,0.00055756,14]
[343146958,1732381840716,-153.0,0.00055758,120]
[343146959,1732381840726,-153.0,0.00055758,120]
[343146960,1732381840735,-153.0,0.00055758,120]
[343146961,1732381840744,-153.0,0.00055758,120]
[343146962,1732381840754,-150.0,0.00055762,30]
[343146963,1732381840764,-150.0,0.00055762,14]
[343146964,1732381840786,-150.0,0.00055771,14]
[343146965,1732381840796,-150.0,0.00055777,14]
[343146966,1732381840806,-150.0,0.00055782,14]
[343146967,1732381840816,-10000.000001,0.00055783,90]
[343146968,1732381840825,-167.31,0.00055783,2]
[343146969,1732381840835,-20000.0,0.00055786,120]
[343146970,1732381840845,-327.3275,0.0005579,2]
[343146971,1732381840854,-1500.0,0.00055793,30]
[343146972,1732381840864,-150.0,0.00055803,14]
[343146973,1732381840874,-150.0,0.00055808,14]
[343146974,1732381840884,-150.0,0.00055822,14]
[343146975,1732381840894,-150.0,0.00055826,14]
[343146976,1732381840904,-150.0,0.00055827,14]
[343146977,1732381840913,-40563.81335016,0.0005584,2]
[343146978,1732381840922,-150.0,0.00055845,30]
[343146979,1732381840931,-150.0,0.0005585,14]
[343146980,1732381840941,-5026.753,0.00055854,120]
[343146981,1732381840950,-150.0,0.00055854,2]
[343146982,1732381840958,-5944.0,0.00055854,120]
[343146983,1732381840967,-1094.0,0.00055854,120]
[343146984,1732381840976,-150.0,0.00055857,14]
[343146985,1732381840985,-3909.81410695,0.00055859,2]
[343146986,1732381840994,-150.0,0.0005586,14]
[343146987,1732381841003,-500.0,0.00055863,120]
[343146988,1732381841011,-500.0,0.00055863,120]
[343146989,1732381841029,-500.0,0.00055863,120]
[343146990,1732381841040,-500.0,0.00055863,120]
[343146991,1732381841049,-2959.0,0.00055863,120]
[343146992,1732381841059,-158.79453722,0.00055873,2]
[343146993,1732381841068,-150.0,0.00055873,14]
[343146994,1732381841078,-3000.0,0.0005588,77]
[343146995,1732381841087,-205.42721135,0.00055881,14]
[343146996,1732381841096,-40563.81335016,0.00055882,2]
[343146997,1732381841106,-1500.0,0.00055883,30]
[343146998,1732381841115,-150.0,0.00055884,14]
[343146999,1732381841125,-1762.59989054,0.00055888,31]
[343147000,1732381841134,-150.0,0.00055888,14]
[343147001,1732381841143,-150.0,0.00055888,30]
[343147002,1732381841152,-500.0,0.00055889,120]
[343147003,1732381841161,-500.0,0.00055889,120]
[343147004,1732381841170,-500.0,0.00055889,120]
[343147005,1732381841180,-500.0,0.00055889,120]
[343147006,1732381841189,-610.32,0.00055889,120]
[343147007,1732381841198,-500.0,0.00055889,120]
[343147008,1732381841208,-661.71,0.00055889,120]
[343147009,1732381841217,-693.34,0.00055889,120]
[343147010,1732381841226,-500.0,0.00055889,120]
[343147011,1732381841235,-1211.89,0.00055889,120]
[343147012,1732381841245,-500.0,0.00055889,120]
[343147013,1732381841254,-500.0,0.00055889,120]
[343147014,1732381841263,-500.0,0.00055889,120]
[343147015,1732381841282,-500.0,0.00055889,120]
[343147016,1732381841292,-500.0,0.00055889,120]
[343147017,1732381841301,-500.0,0.00055889,120]
[343147018,1732381841310,-500.0,0.00055889,120]
[343147019,1732381841319,-500.0,0.00055889,120]
[343147020,1732381841329,-500.0,0.00055889,120]
[343147021,1732381841338,-500.0,0.00055889,120]
[343147022,1732381841347,-623.78,0.00055889,120]
[343147023,1732381841356,-574.64,0.00055889,120]
[343147024,1732381841373,-786.71,0.00055889,54]
[343147025,1732381841383,-1035.76,0.00055889,120]
[343147026,1732381841392,-500.0,0.00055889,120]
[343147027,1732381841401,-500.0,0.00055889,120]
[343147028,1732381841409,-500.0,0.00055889,120]
[343147029,1732381841418,-567.27838369,0.00055889,120]
[343147030,1732381841426,-547.05,0.00055889,120]
[343147031,1732381841435,-500.0,0.00055889,120]
[343147032,1732381841443,-558.89515214,0.00055889,120]
[343147033,1732381841452,-542.83,0.00055889,120]
[343147034,1732381841461,-516.34,0.00055889,120]
[343147035,1732381841470,-570.63,0.00055889,120]
[343147036,1732381841479,-819.21,0.00055889,120]
[343147037,1732381841488,-500.0,0.00055889,120]
[343147038,1732381841496,-500.0,0.00055889,120]
[343147039,1732381841505,-500.0,0.00055889,120]
[343147040,1732381841514,-500.0,0.00055889,120]
[343147041,1732381841532,-1094.74,0.00055889,120]
[343147042,1732381841544,-861.35,0.00055889,120]
[343147043,1732381841553,-500.0,0.00055889,120]
[343147044,1732381841563,-500.0,0.00055889,120]
[343147045,1732381841573,-500.0,0.00055889,120]
[343147046,1732381841583,-553.91021495,0.00055889,120]
[343147047,1732381841592,-780.18,0.00055889,120]
[343147048,1732381841602,-632.06,0.00055889,120]
[343147049,1732381841612,-500.0,0.00055889,120]
[343147050,1732381841624,-500.0,0.00055889,120]
[343147051,1732381841634,-500.0,0.00055889,120]
[343147052,1732381841644,-824.43,0.00055889,120]
[343147053,1732381841654,-538.89,0.00055889,120]
[343147054,1732381841663,-500.0,0.00055889,120]
[343147055,1732381841672,-731.97,0.00055889,120]
[343147056,1732381841686,-500.0,0.00055889,120]
[343147057,1732381841695,-500.0,0.00055889,120]
[343147058,1732381841704,-500.0,0.00055889,120]
[343147059,1732381841716,-500.0,0.00055889,120]
[343147060,1732381841727,-500.0,0.00055889,120]
[343147061,1732381841737,-500.0,0.00055889,120]
[343147062,1732381841747,-500.0,0.00055889,120]
[343147063,1732381841756,-751.75,0.00055889,120]
[343147064,1732381841766,-500.0,0.00055889,120]
[343147065,1732381841781,-500.0,0.00055889,120]
[343147066,1732381841791,-1141.34,0.00055889,120]
[343147067,1732381841800,-500.0,0.00055889,120]
[343147068,1732381841809,-500.0,0.00055889,120]
[343147069,1732381841819,-948.52,0.00055889,30]
[343147070,1732381841828,-500.0,0.00055889,120]
[343147071,1732381841995,-500.0,0.00055889,120]
[343147072,1732381842010,-500.0,0.00055889,120]
[343147073,1732381842025,-500.0,0.00055889,120]
[343147074,1732381842036,-1157.45,0.00055889,120]
[343147075,1732381842047,-500.0,0.00055889,120]
[343147076,1732381842057,-903.62,0.00055889,120]
[343147077,1732381842066,-500.0,0.00055889,120]
[343147078,1732381842077,-500.0,0.00055889,120]
[343147079,1732381842085,-500.0,0.00055889,120]
[343147080,1732381842094,-411.44,0.00055889,120]
[343147081,1732381842104,-524.68,0.00055889,120]
[343147082,1732381842114,-804.88,0.00055889,120]
[343147083,1732381842123,-155.770464,0.00055889,120]
[343147084,1732381842136,-204.5553779,0.00055889,120]
[343147085,1732381842145,-500.0,0.00055889,120]
[343147086,1732381842155,-500.0,0.00055889,120]
[343147087,1732381842165,-813.28,0.00055889,120]
[343147088,1732381842175,-500.0,0.00055889,120]
[343147089,1732381842185,-500.0,0.00055889,120]
[343147090,1732381842195,-525.96,0.00055889,120]
[343147091,1732381842206,-536.79,0.00055889,120]
[343147092,1732381842216,-500.0,0.00055889,120]
[343147093,1732381842227,-500.0,0.00055889,120]
[343147094,1732381842236,-500.0,0.00055889,120]
[343147095,1732381842246,-500.0,0.00055889,120]
[343147096,1732381842257,-743.73,0.00055889,120]
[343147097,1732381842268,-500.0,0.00055889,21]
[343147098,1732381842281,-50000.0,0.0005589,56]
[343147099,1732381842291,-257.99017312,0.0005589,27]
[343147100,1732381842301,-310.94406069,0.0005589,15]
[343147101,1732381842310,-175.00821997,0.0005589,15]
[343147102,1732381842319,-154355.091,0.0005589,2]
[343147103,1732381842329,-53617.9611,0.0005589,2]
[343147104,1732381842339,-2250.68945522,0.0005589,120]
[343147105,1732381842349,-2250.68945522,0.0005589,120]
[343147106,1732381842359,-2250.68945522,0.0005589,120]
[343147107,1732381842368,-2250.68945522,0.0005589,120]
[343147108,1732381842378,-2250.68945522,0.0005589,120]
[343147109,1732381842387,-2250.68945522,0.0005589,120]
[343147110,1732381842397,-2250.68945522,0.0005589,120]
[343147111,1732381842407,-2250.68945522,0.0005589,120]
[343147112,1732381842416,-2250.68945522,0.0005589,120]
[343147113,1732381842425,-2250.68945522,0.0005589,120]
[343147114,1732381842435,-2250.68945522,0.0005589,120]
[343147115,1732381842444,-2250.68945522,0.0005589,120]
[343147116,1732381842453,-2250.68945522,0.0005589,120]
[343147117,1732381842462,-2250.68945522,0.0005589,120]
[343147118,1732381842472,-2250.68945522,0.0005589,120]
[343147119,1732381842482,-2250.68945522,0.0005589,120]
[343147120,1732381842492,-2250.68945522,0.0005589,120]
[343147121,1732381842502,-2250.68945522,0.0005589,120]
[343147122,1732381842511,-2250.68945522,0.0005589,120]
[343147123,1732381842526,-2250.68,0.0005589,120]
[343147124,1732381842536,-3376.03418284,0.0005589,120]
[343147125,1732381842547,-3376.03418284,0.0005589,120]
[343147126,1732381842560,-3376.03418284,0.0005589,120]
[343147127,1732381842571,-3376.03418284,0.0005589,120]
[343147128,1732381842582,-3376.03418284,0.0005589,120]
[343147129,1732381842593,-3376.03418284,0.0005589,120]
[343147130,1732381842604,-3376.03418284,0.0005589,120]
[343147131,1732381842614,-3376.03418284,0.0005589,120]
[343147132,1732381842624,-3376.03418284,0.0005589,120]
[343147133,1732381842634,-3376.03418284,0.0005589,120]
[343147134,1732381842644,-3376.03418284,0.0005589,120]
[343147135,1732381842655,-3376.03418284,0.0005589,120]
[343147136,1732381842665,-3376.03418284,0.0005589,120]
[343147137,1732381842675,-3376.03418284,0.0005589,120]
[343147138,1732381842684,-3376.03418284,0.0005589,120]
[343147139,1732381842694,-3376.03418284,0.0005589,120]
[343147140,1732381842704,-3376.03418284,0.0005589,120]
[343147141,1732381842714,-3376.03418284,0.0005589,120]
[343147142,1732381842723,-3376.03418284,0.0005589,120]
[343147143,1732381842733,-3376.03,0.0005589,120]
[343147144,1732381842743,-150.20966135,0.0005589,120]
[343147145,1732381842753,-150.20966135,0.0005589,120]
[343147146,1732381842763,-150.20966135,0.0005589,120]
[343147147,1732381842777,-150.2,0.0005589,120]
[343147148,1732381842787,-150.20966135,0.0005589,120]
[343147149,1732381842796,-150.20966135,0.0005589,120]
[343147150,1732381842806,-150.20966135,0.0005589,120]
[343147151,1732381842816,-150.20966135,0.0005589,120]
[343147152,1732381842826,-150.20966135,0.0005589,120]
[343147153,1732381842836,-150.2,0.0005589,120]
[343147154,1732381842846,-150.0,0.00055891,14]
[343147155,1732381842859,-150.0,0.00055895,14]
[343147156,1732381842869,-24694.13779712,0.000559,30]
[343147157,1732381842879,-5000.0,0.000559,120]
[343147158,1732381842888,-359.0,0.000559,3]
[343147159,1732381842898,-150.0,0.000559,120]
[343147160,1732381842907,-158.0,0.000559,72]
[343147161,1732381842917,-150.0,0.00055902,14]
[343147162,1732381842927,-150.0,0.00055905,14]
[343147163,1732381842937,-500.0,0.00055917,60]
[343147164,1732381842947,-150.0,0.00055917,14]
[343147165,1732381842957,-150.0,0.00055918,14]
[343147166,1732381842966,-150.0,0.00055931,30]
[343147167,1732381842975,-500.0,0.00055943,120]
[343147168,1732381842983,-1026.26,0.00055943,120]
[343147169,1732381842992,-893.77,0.00055943,120]
[343147170,1732381843001,-572.24,0.00055943,120]
[343147171,1732381843010,-772.04,0.00055943,120]
[343147172,1732381843021,-942.48,0.00055943,120]
[343147173,1732381843030,-500.0,0.00055943,120]
[343147174,1732381843039,-755.85,0.00055943,120]
[343147175,1732381843048,-532.18,0.00055943,120]
[343147176,1732381843058,-630.75,0.00055943,120]
[343147177,1732381843068,-150.0,0.00055944,14]
[343147178,1732381843078,-47861.05426321,0.00055948,2]
[343147179,1732381843087,-150.0,0.00055952,14]
[343147180,1732381843097,-500.0,0.00055952,120]
[343147181,1732381843108,-500.0,0.00055952,120]
[343147182,1732381843118,-206.98,0.00055952,120]
[343147183,1732381843128,-158.96,0.00055952,120]
[343147184,1732381843138,-500.0,0.00055952,120]
[343147185,1732381843147,-500.0,0.00055952,120]
[343147187,1732381843157,-500.0,0.00055952,120]
[343147189,1732381843166,-500.0,0.00055952,120]
[343147190,1732381843176,-500.0,0.00055952,120]
[343147191,1732381843186,-500.0,0.00055952,120]
[343147193,1732381843195,-536.79,0.00055952,120]
[343147194,1732381843205,-19392.6582993,0.00055952,2]
[343147195,1732381843215,-24119.2678657,0.00055952,2]
[343147196,1732381843224,-28845.8774321,0.00055952,2]
[343147197,1732381843235,-33572.4869985,0.00055952,2]
[343147198,1732381843245,-38299.0965649,0.00055952,2]
[343147199,1732381843256,-500.0,0.00055952,120]
[343147200,1732381843265,-500.0,0.00055952,21]
[343147202,1732381843278,-47861.05426321,0.00055953,2]
[343147206,1732381843288,-150.0,0.00055953,14]
[343147208,1732381843297,-150.0,0.00055961,14]
[343147210,1732381843306,-925202.86255576,0.0005597,44]
[343147212,1732381843315,-31468.59006493,0.0005597,62]
[343147215,1732381843325,-3909.81410695,0.0005597,2]
[343147216,1732381843335,-223.5,0.0005597,7]
[343147218,1732381843345,-1500.0,0.00055972,30]
[343147219,1732381843354,-292.89937195,0.00055973,120]
[343147221,1732381843364,-502.8272821,0.00055974,60]
[343147223,1732381843374,-150.0,0.00055974,14]
[343147225,1732381843384,-300.21,0.00055979,120]
[343147227,1732381843394,-150.5,0.00055979,120]
[343147229,1732381843403,-150.5,0.0005598,7]
[343147231,1732381843412,-150.0,0.00055985,14]
[343147233,1732381843422,-516.34,0.00055987,120]
[343147235,1732381843432,-500.0,0.00055987,120]
[343147237,1732381843441,-500.0,0.00055987,120]
[343147239,1732381843451,-500.0,0.00055987,120]
[343147241,1732381843461,-632.06,0.00055987,120]
[343147243,1732381843471,-500.0,0.00055987,120]
[343147245,1732381843481,-500.0,0.00055987,120]
[343147247,1732381843490,-500.0,0.00055987,120]
[343147249,1732381843500,-500.0,0.00055987,120]
[343147251,1732381843510,-1141.34,0.00055987,120]
[343147253,1732381843522,-500.0,0.00055987,120]
[343147255,1732381843532,-500.0,0.00055987,120]
[343147257,1732381843547,-1157.45,0.00055987,120]
[343147259,1732381843557,-500.0,0.00055987,120]
[343147260,1732381843567,-524.68,0.00055987,120]
[343147261,1732381843577,-500.0,0.00055987,120]
[343147262,1732381843588,-525.96,0.00055987,120]
[343147263,1732381843599,-1024324.11670099,0.00055987,120]
[343147264,1732381843608,-743.73,0.00055987,120]
[343147265,1732381843619,-500.0,0.00055987,120]
[343147266,1732381843631,-500.0,0.00055988,120]
[343147267,1732381843641,-1026.26,0.00055988,120]
[343147268,1732381843651,-893.77,0.00055988,120]
[343147270,1732381843661,-572.24,0.00055988,120]
[343147272,1732381843671,-772.04,0.00055988,120]
[343147273,1732381843680,-942.48,0.00055988,120]
[343147275,1732381843690,-500.0,0.00055988,120]
[343147276,1732381843701,-500.0,0.00055988,120]
[343147277,1732381843710,-500.0,0.00055988,120]
[343147278,1732381843721,-500.0,0.00055988,120]
[343147279,1732381843732,-500.0,0.00055988,120]
[343147280,1732381843741,-500.0,0.00055988,120]
[343147281,1732381843751,-500.0,0.00055988,120]
[343147282,1732381843766,-500.0,0.00055988,120]
[343147283,1732381843779,-500.0,0.00055988,120]
[343147284,1732381843790,-500.0,0.00055988,120]
[343147285,1732381843800,-755.85,0.00055988,120]
[343147286,1732381843810,-500.0,0.00055988,120]
[343147287,1732381843820,-500.0,0.00055988,120]
[343147288,1732381843830,-500.0,0.00055988,120]
[343147289,1732381843840,-532.18,0.00055988,120]
[343147290,1732381843852,-610.32,0.00055988,120]
[343147291,1732381843863,-610.32,0.00055988,120]
[343147292,1732381843873,-610.32,0.00055988,120]
[343147293,1732381843884,-500.0,0.00055988,120]
[343147294,1732381843894,-500.0,0.00055988,120]
[343147295,1732381843904,-500.0,0.00055988,120]
[343147296,1732381843914,-661.71,0.00055988,120]
[343147297,1732381843924,-661.71,0.00055988,120]
[343147298,1732381843934,-661.71,0.00055988,120]
[343147299,1732381843944,-500.0,0.00055988,120]
[343147300,1732381843955,-630.75,0.00055988,120]
[343147301,1732381843965,-693.34,0.00055988,120]
[343147303,1732381843974,-693.34,0.00055988,120]
[343147304,1732381843984,-693.34,0.00055988,120]
[343147305,1732381843994,-500.0,0.00055988,120]
[343147306,1732381844004,-500.0,0.00055988,120]
[343147307,1732381844014,-500.0,0.00055988,120]
[343147309,1732381844027,-1211.89,0.00055988,120]
[343147311,1732381844038,-1211.89,0.00055988,120]
[343147312,1732381844048,-1211.89,0.00055988,120]
[343147313,1732381844058,-500.0,0.00055988,120]
[343147314,1732381844067,-500.0,0.00055988,120]
[343147315,1732381844077,-500.0,0.00055988,120]
[343147316,1732381844086,-523.63331651,0.00055988,120]
[343147317,1732381844096,-500.0,0.00055988,120]
[343147318,1732381844106,-500.0,0.00055988,120]
[343147319,1732381844115,-500.0,0.00055988,120]
[343147320,1732381844125,-500.0,0.00055988,120]
[343147321,1732381844135,-500.0,0.00055988,120]
[343147322,1732381844144,-500.0,0.00055988,120]
[343147323,1732381844154,-500.0,0.00055988,120]
[343147324,1732381844164,-500.0,0.00055988,120]
[343147325,1732381844175,-500.0,0.00055988,120]
[343147326,1732381844185,-500.0,0.00055988,120]
[343147327,1732381844195,-500.0,0.00055988,120]
[343147328,1732381844204,-500.0,0.00055988,120]
[343147329,1732381844214,-500.0,0.00055988,120]
[343147330,1732381844222,-500.0,0.00055988,120]
[343147331,1732381844231,-403.98601725,0.00055988,120]
[343147332,1732381844240,-500.0,0.00055988,120]
[343147333,1732381844250,-500.0,0.00055988,120]
[343147334,1732381844259,-500.0,0.00055988,120]
[343147335,1732381844271,-500.0,0.00055988,120]
[343147336,1732381844281,-500.0,0.00055988,120]
[343147337,1732381844291,-500.0,0.00055988,120]
[343147338,1732381844301,-500.0,0.00055988,120]
[343147339,1732381844311,-500.0,0.00055988,120]
[343147340,1732381844320,-500.0,0.00055988,120]
[343147341,1732381844330,-500.0,0.00055988,120]
[343147342,1732381844340,-185.09491739,0.00055988,120]
[343147343,1732381844350,-500.0,0.00055988,120]
[343147344,1732381844360,-574.64,0.00055988,120]
[343147345,1732381844370,-574.64,0.00055988,120]
[343147346,1732381844381,-574.64,0.00055988,120]
[343147347,1732381844391,-786.71,0.00055988,54]
[343147348,1732381844401,-786.71,0.00055988,54]
[343147349,1732381844411,-786.71,0.00055988,54]
[343147350,1732381844421,-1035.76,0.00055988,120]
[343147351,1732381844472,-1035.76,0.00055988,120]
[343147352,1732381844483,-1035.76,0.00055988,120]
[343147353,1732381844493,-500.0,0.00055988,120]